[Event "FIDE Open World Rapid 2024"]
[Site "New York"]
[Date "2024.12.27"]
[Round "8.32"]
[White "Anton Guijarro, David"]
[Black "Woodward, Andy"]
[Result "1-0"]
[ECO "B51"]
[WhiteElo "2673"]
[BlackElo "2530"]
[Annotator "ChessBase"]
[PlyCount "97"]
[EventDate "2024.12.14"]
[EventType "swiss"]
[EventCountry "USA"]
[SourceTitle "playchess.com"]
[Source "ChessBase"]
[SourceQuality "1"]
[TimeControl "900+10"]

1. e4 {[%emt 0:00:02]} c5 {[%emt 0:00:44]} 2. Nf3 {[%emt 0:00:03]} d6 {[%emt 0:00:03]} 3. Bb5+ {[%emt 0:00:03]} Nd7 {[%emt 0:00:04]} 4. Ba4 {[%emt 0:00:08]} Ngf6 {[%emt 0:00:07]} 5. O-O {[%emt 0:00:07]} e6 {[%emt 0:00:06]} 6. d3 {[%emt 0:00:08]} Be7 {[%emt 0:00:04]} 7. c4 {[%emt 0:00:03]} O-O {[%emt 0:00:17]} 8. Nc3 {[%emt 0:00:04]} Ne5 {[%emt 0:00:03]} 9. Ne1 {[%emt 0:00:05]} Bd7 {[%emt 0:00:09]} 10. Bxd7 {[%emt 0:00:05]} Nfxd7 {[%emt 0:00:10]} 11. f4 {[%emt 0:00:05]} Nc6 {[%emt 0:00:04]} 12. Kh1 {[%emt 0:00:09]} f5 {[%emt 0:01:39]} 13. Nf3 {[%emt 0:00:20]} Bf6 {[%emt 0:00:23]} 14. exf5 {[%emt 0:01:25]} exf5 {[%emt 0:00:05]} 15. Bd2 {[%emt 0:00:45]} Nb6 {[%emt 0:00:35]} 16. a4 {[%emt 0:02:12]} a5 {[%emt 0:01:53]} 17. Qb3 {[%emt 0:00:26]} Nb4 {[%emt 0:03:17]} 18. Nb5 {[%emt 0:00:18]} Qd7 {[%emt 0:00:24]} 19. d4 {[%emt 0:01:42]} Rae8 {[%emt 0:00:30]} 20. dxc5 {[%emt 0:00:49]} dxc5 {[%emt 0:00:02]} 21. Bxb4 {[%emt 0:00:07]} axb4 {[%emt 0:00:50]} 22. Rad1 {[%emt 0:01:25]} Qe7 {[%emt 0:01:49]} 23. a5 {[%emt 0:00:36]} Nc8 {[%emt 0:00:07]} 24. Rfe1 {[%emt 0:00:40]} Qf7 {[%emt 0:00:02]} 25. Ne5 {[%emt 0:00:17]} Bxe5 {[%emt 0:00:21]} 26. fxe5 {[%emt 0:00:03]} f4 {[%emt 0:01:18]} 27. Rd5 {[%emt 0:00:03]} Qh5 {[%emt 0:02:16]} 28. Qf3 {[%emt 0:00:29]} Qh4 {[%emt 0:00:02]} 29. Rdd1 {[%emt 0:01:58]} Re7 {[%emt 0:02:24]} 30. h3 {[%emt 0:01:13]} Kh8 {[%emt 0:00:10]} 31. Qg4 {[%emt 0:00:46]} Qh6 {[%emt 0:00:11]} 32. Re4 {[%emt 0:00:20]} Re6 {[%emt 0:00:10]} 33. Qxf4 {[%emt 0:01:04]} g5 {[%emt 0:00:06]} 34. Qg4 {[%emt 0:00:18]} Qg6 {[%emt 0:00:01]} 35. Ree1 {[%emt 0:00:26]} Rf4 {[%emt 0:00:15]} 36. Qg3 {[%emt 0:00:29]} Ne7 {[%emt 0:00:05]} 37. Nc7 {[%emt 0:00:18]} Rc6 {[%emt 0:00:22]} 38. Rd8+ {[%emt 0:00:14]} Kg7 {[%emt 0:00:03]} 39. Rd7 {[%emt 0:00:45]} Kf8 {[%emt 0:00:06]} 40. e6 {[%emt 0:00:37]} Qf5 {[%emt 0:00:19]} 41. Nd5 {[%emt 0:00:28]} Rxe6 {[%emt 0:00:12]} 42. Rxe6 {[%emt 0:00:04]} Qxe6 {[%emt 0:00:10]} 43. Rxe7 {[%emt 0:00:02]} Qd6 {[%emt 0:00:03]} 44. Qe1 {[%emt 0:00:13]} Rxc4 {[%emt 0:00:08]} 45. Re6 {[%emt 0:00:25]} Rc1 {[%emt 0:00:18]} 46. Qxc1 {[%emt 0:00:06]} Qxe6 {[%emt 0:00:01]} 47. Qxc5+ {[%emt 0:00:02]} Kf7 {[%emt 0:00:01]} 48. Qc7+ {[%emt 0:00:08]} Kg6 {[%emt 0:00:21]} 49. Qb6 {[%emt 0:00:05]} 1-0

[Event "FIDE Open World Rapid 2024"]
[Site "New York"]
[Date "2024.12.28"]
[Round "8.32"]
[White "Matviishen, Viktor"]
[Black "Degenbaev, Aziz"]
[Result "1-0"]
[ECO "E73"]
[WhiteElo "2566"]
[BlackElo "2260"]
[Annotator "ChessBase"]
[PlyCount "99"]
[EventDate "2024.12.14"]
[EventType "swiss"]
[EventCountry "USA"]
[SourceTitle "playchess.com"]
[Source "ChessBase"]
[SourceQuality "1"]
[TimeControl "900+10"]

1. d4 {[%emt 0:00:01]} Nf6 {[%emt 0:00:01]} 2. c4 {[%emt 0:00:01]} g6 {[%emt 0:00:04]} 3. Nc3 {[%emt 0:00:02]} Bg7 {[%emt 0:00:01]} 4. e4 {[%emt 0:00:01]} d6 {[%emt 0:00:01]} 5. Be2 {[%emt 0:00:01]} O-O {[%emt 0:00:03]} 6. Be3 {[%emt 0:00:01]} e5 {[%emt 0:00:01]} 7. d5 {[%emt 0:00:02]} Na6 {[%emt 0:00:09]} 8. h4 {[%emt 0:00:09]} Nc5 {[%emt 0:00:07]} 9. Qc2 {[%emt 0:00:03]} c6 {[%emt 0:00:15]} 10. h5 {[%emt 0:00:44]} cxd5 {[%emt 0:00:14]} 11. cxd5 {[%emt 0:00:01]} Qa5 {[%emt 0:00:26]} 12. h6 {[%emt 0:00:59]} Bh8 {[%emt 0:00:05]} 13. f3 {[%emt 0:00:01]} Nh5 {[%emt 0:01:45]} 14. Rb1 {[%emt 0:00:02]} Ng3 {[%emt 0:00:41]} 15. b4 {[%emt 0:00:02]} Qd8 {[%emt 0:00:02]} 16. bxc5 {[%emt 0:00:11]} Nxh1 {[%emt 0:00:05]} 17. c6 {[%emt 0:00:03]} b6 {[%emt 0:02:53]} 18. g4 {[%emt 0:09:11]} f5 {[%emt 0:02:07]} 19. exf5 {[%emt 0:00:05]} gxf5 {[%emt 0:00:02]} 20. gxf5 {[%emt 0:00:01]} Ng3 {[%emt 0:01:24]} 21. Rb4 {[%emt 0:00:24]} Bxf5 {[%emt 0:02:02]} 22. Bd3 {[%emt 0:00:16]} e4 {[%emt 0:01:36]} 23. Nxe4 {[%emt 0:00:16]} Be5 {[%emt 0:01:33]} 24. Nxg3 {[%emt 0:00:35]} Bxg3+ {[%emt 0:00:02]} 25. Kd2 {[%emt 0:00:39]} Bxd3 {[%emt 0:00:05]} 26. Qxd3 {[%emt 0:00:02]} Be5 {[%emt 0:00:06]} 27. Rg4+ {[%emt 0:01:35]} Kh8 {[%emt 0:00:01]} 28. f4 {[%emt 0:00:46]} Bf6 {[%emt 0:00:01]} 29. Nf3 {[%emt 0:00:05]} Qe7 {[%emt 0:02:02]} 30. Ng5 {[%emt 0:00:44]} Rae8 {[%emt 0:00:01]} 31. Ne6 {[%emt 0:00:06]} Rg8 {[%emt 0:00:00]} 32. Qf5 {[%emt 0:01:16]} Rxg4 {[%emt 0:00:15]} 33. Qxg4 {[%emt 0:00:00]} Qf7 {[%emt 0:00:01]} 34. Kd3 {[%emt 0:01:30]} Ba1 {[%emt 0:01:10]} 35. f5 {[%emt 0:00:24]} Qf6 {[%emt 0:00:38]} 36. Bd4 {[%emt 0:00:13]} Bxd4 {[%emt 0:00:01]} 37. Qxd4 {[%emt 0:00:01]} Qxd4+ {[%emt 0:00:01]} 38. Kxd4 {[%emt 0:00:01]} Kg8 {[%emt 0:00:05]} 39. Ng5 {[%emt 0:00:52]} Kf8 {[%emt 0:01:18]} 40. f6 {[%emt 0:00:03]} Re1 {[%emt 0:00:04]} 41. Ne4 {[%emt 0:00:16]} Rd1+ {[%emt 0:00:15]} 42. Ke3 {[%emt 0:00:02]} Rc1 {[%emt 0:00:12]} 43. Nxd6 {[%emt 0:00:04]} Rc5 {[%emt 0:00:02]} 44. Ke4 {[%emt 0:00:02]} a5 {[%emt 0:00:03]} 45. a4 {[%emt 0:00:04]} Rc1 {[%emt 0:00:16]} 46. Ke5 {[%emt 0:00:03]} Re1+ {[%emt 0:00:16]} 47. Kf5 {[%emt 0:00:01]} Rc1 {[%emt 0:00:09]} 48. Ke6 {[%emt 0:00:04]} Rc5 {[%emt 0:00:02]} 49. Nb5 {[%emt 0:00:08]} Rc4 {[%emt 0:00:15]} 50. c7 {[%emt 0:00:05]} 1-0

[Event "FIDE Open World Rapid 2024"]
[Site "New York"]
[Date "2024.12.27"]
[Round "8.33"]
[White "Svane, Rasmus"]
[Black "Bjerre, Jonas Buhl"]
[Result "0-1"]
[ECO "B38"]
[WhiteElo "2628"]
[BlackElo "2642"]
[Annotator "ChessBase"]
[PlyCount "150"]
[EventDate "2024.12.14"]
[EventType "swiss"]
[EventCountry "USA"]
[SourceTitle "playchess.com"]
[Source "ChessBase"]
[SourceQuality "1"]
[TimeControl "900+10"]

1. Nf3 {[%emt 0:00:02]} c5 {[%emt 0:00:03]} 2. c4 {[%emt 0:00:06]} g6 {[%emt 0:00:04]} 3. d4 {[%emt 0:00:15]} cxd4 {[%emt 0:00:02]} 4. Nxd4 {[%emt 0:00:02]} Bg7 {[%emt 0:00:05]} 5. e4 {[%emt 0:00:14]} Nc6 {[%emt 0:00:01]} 6. Be3 {[%emt 0:00:10]} Qb6 {[%emt 0:00:02]} 7. Nb3 {[%emt 0:00:19]} Qd8 {[%emt 0:00:01]} 8. Qd2 {[%emt 0:00:25]} Nf6 {[%emt 0:00:02]} 9. f3 {[%emt 0:00:26]} d6 {[%emt 0:00:02]} 10. Be2 {[%emt 0:00:09]} Be6 {[%emt 0:00:13]} 11. O-O {[%emt 0:00:11]} O-O {[%emt 0:00:08]} 12. Nc3 {[%emt 0:00:56]} Nd7 {[%emt 0:00:03]} 13. Rac1 {[%emt 0:00:52]} a5 {[%emt 0:00:18]} 14. Na4 {[%emt 0:01:49]} Nb4 {[%emt 0:03:20]} 15. a3 {[%emt 0:03:38]} Na2 {[%emt 0:00:52]} 16. Ra1 {[%emt 0:00:16]} b5 {[%emt 0:00:01]} 17. Rxa2 {[%emt 0:00:07]} bxa4 {[%emt 0:00:09]} 18. Nd4 {[%emt 0:00:03]} Nc5 {[%emt 0:00:32]} 19. Qc2 {[%emt 0:02:12]} Bxd4 {[%emt 0:02:03]} 20. Bxd4 {[%emt 0:00:02]} Nb3 {[%emt 0:00:01]} 21. Be3 {[%emt 0:01:18]} Qc7 {[%emt 0:00:02]} 22. Raa1 {[%emt 0:00:41]} Nxa1 {[%emt 0:00:36]} 23. Rxa1 {[%emt 0:00:12]} Qb7 {[%emt 0:00:34]} 24. Bd4 {[%emt 0:01:15]} Qb3 {[%emt 0:01:20]} 25. Rc1 {[%emt 0:00:09]} Rfc8 {[%emt 0:01:35]} 26. Kf2 {[%emt 0:00:47]} Rc6 {[%emt 0:01:30]} 27. Qd2 {[%emt 0:00:34]} Bxc4 {[%emt 0:00:34]} 28. Rc3 {[%emt 0:00:29]} Qb5 {[%emt 0:00:22]} 29. Bd1 {[%emt 0:01:17]} e5 {[%emt 0:00:37]} 30. Be3 {[%emt 0:00:03]} Rac8 {[%emt 0:00:10]} 31. Bg5 {[%emt 0:00:39]} h5 {[%emt 0:01:50]} 32. Kg3 {[%emt 0:00:27]} Be6 {[%emt 0:00:55]} 33. Rd3 {[%emt 0:00:16]} Qb8 {[%emt 0:01:01]} 34. Bxa4 {[%emt 0:00:09]} Rb6 {[%emt 0:00:00]} 35. Bf6 {[%emt 0:00:14]} Kh7 {[%emt 0:00:01]} 36. b3 {[%emt 0:00:08]} Qc7 {[%emt 0:00:51]} 37. Qxa5 {[%emt 0:00:09]} Qc1 {[%emt 0:00:35]} 38. Qd2 {[%emt 0:00:16]} Qb1 {[%emt 0:00:24]} 39. Rc3 {[%emt 0:00:03]} Rxc3 {[%emt 0:00:15]} 40. Qxc3 {[%emt 0:00:02]} Rb8 {[%emt 0:00:02]} 41. Qd2 {[%emt 0:00:16]} Rc8 {[%emt 0:00:08]} 42. b4 {[%emt 0:00:03]} Qa1 {[%emt 0:00:08]} 43. Bb5 {[%emt 0:00:19]} Qb1 {[%emt 0:00:34]} 44. Bd3 {[%emt 0:00:04]} Qa1 {[%emt 0:00:02]} 45. Ba6 {[%emt 0:00:09]} Ra8 {[%emt 0:00:04]} 46. b5 {[%emt 0:00:05]} Qxa3 {[%emt 0:00:01]} 47. Be7 {[%emt 0:00:14]} Qa1 {[%emt 0:00:17]} 48. h4 {[%emt 0:00:12]} Qd4 {[%emt 0:00:15]} 49. Qxd4 {[%emt 0:00:06]} exd4 {[%emt 0:00:01]} 50. Kf4 {[%emt 0:00:29]} Bc4 {[%emt 0:00:06]} 51. Bxd6 {[%emt 0:00:04]} f6 {[%emt 0:00:18]} 52. Bc5 {[%emt 0:00:10]} Rd8 {[%emt 0:00:10]} 53. Be7 {[%emt 0:00:14]} d3 {[%emt 0:00:06]} 54. Bxd8 {[%emt 0:00:09]} d2 {[%emt 0:00:01]} 55. Bxf6 {[%emt 0:00:06]} d1=Q {[%emt 0:00:01]} 56. Bg5 {[%emt 0:00:16]} Qc2 {[%emt 0:00:07]} 57. g4 {[%emt 0:00:08]} hxg4 {[%emt 0:00:18]} 58. Kxg4 {[%emt 0:00:08]} Qg2+ {[%emt 0:00:07]} 59. Kf4 {[%emt 0:00:04]} Be2 {[%emt 0:00:02]} 60. Ke5 {[%emt 0:00:13]} Qxf3 {[%emt 0:00:02]} 61. Bb7 {[%emt 0:00:12]} Qc3+ {[%emt 0:00:30]} 62. Kd6 {[%emt 0:00:14]} Qb4+ {[%emt 0:00:01]} 63. Ke5 {[%emt 0:00:06]} Qxb5+ {[%emt 0:00:18]} 64. Bd5 {[%emt 0:00:02]} Bc4 {[%emt 0:00:05]} 65. Kd4 {[%emt 0:00:16]} Bxd5 {[%emt 0:00:05]} 66. exd5 {[%emt 0:00:02]} Kg7 {[%emt 0:00:03]} 67. Ke5 {[%emt 0:00:18]} Kf7 {[%emt 0:00:05]} 68. Kd6 {[%emt 0:00:02]} Qb6+ {[%emt 0:00:13]} 69. Ke5 {[%emt 0:00:12]} Qb8+ {[%emt 0:00:04]} 70. Kd4 {[%emt 0:00:22]} Ke8 {[%emt 0:00:05]} 71. Ke4 {[%emt 0:00:07]} Qg3 {[%emt 0:00:04]} 72. Kd4 {[%emt 0:00:10]} Kd7 {[%emt 0:00:01]} 73. Ke4 {[%emt 0:00:01]} Qg4+ {[%emt 0:00:04]} 74. Ke5 {[%emt 0:00:06]} Qf5+ {[%emt 0:00:01]} 75. Kd4 {[%emt 0:00:01]} Kd6 {[%emt 0:00:01]} 0-1

[Event "FIDE Open World Rapid 2024"]
[Site "New York"]
[Date "2024.12.28"]
[Round "8.33"]
[White "George, Kevin"]
[Black "Erenburg, Sergey"]
[Result "0-1"]
[ECO "B11"]
[WhiteElo "2270"]
[BlackElo "2510"]
[Annotator "ChessBase"]
[PlyCount "144"]
[EventDate "2024.12.14"]
[EventType "swiss"]
[EventCountry "USA"]
[SourceTitle "playchess.com"]
[Source "ChessBase"]
[SourceQuality "1"]
[TimeControl "900+10"]

1. e4 {[%emt 0:00:01]} c6 {[%emt 0:00:01]} 2. Nc3 {[%emt 0:00:04]} d5 {[%emt 0:00:01]} 3. Nf3 {[%emt 0:00:01]} Bg4 {[%emt 0:00:02]} 4. h3 {[%emt 0:00:02]} Bxf3 {[%emt 0:00:01]} 5. Qxf3 {[%emt 0:00:02]} Nf6 {[%emt 0:00:02]} 6. Be2 {[%emt 0:00:18]} e6 {[%emt 0:00:05]} 7. O-O {[%emt 0:00:19]} Bc5 {[%emt 0:00:07]} 8. exd5 {[%emt 0:00:47]} cxd5 {[%emt 0:00:10]} 9. Rd1 {[%emt 0:01:39]} Nc6 {[%emt 0:00:02]} 10. Bb5 {[%emt 0:01:38]} O-O {[%emt 0:03:40]} 11. Bxc6 {[%emt 0:00:06]} bxc6 {[%emt 0:00:03]} 12. d4 {[%emt 0:00:01]} Be7 {[%emt 0:00:01]} 13. Bf4 {[%emt 0:00:26]} c5 {[%emt 0:01:20]} 14. dxc5 {[%emt 0:02:08]} Bxc5 {[%emt 0:00:02]} 15. Bg5 {[%emt 0:00:01]} Be7 {[%emt 0:00:10]} 16. Ne2 {[%emt 0:00:38]} Rc8 {[%emt 0:01:39]} 17. Nd4 {[%emt 0:02:47]} h6 {[%emt 0:00:17]} 18. Bh4 {[%emt 0:00:11]} Ne4 {[%emt 0:01:43]} 19. Bxe7 {[%emt 0:00:18]} Qxe7 {[%emt 0:00:02]} 20. c3 {[%emt 0:00:20]} Qb7 {[%emt 0:00:58]} 21. Qe2 {[%emt 0:00:31]} Rb8 {[%emt 0:00:02]} 22. Rab1 {[%emt 0:00:27]} Rfc8 {[%emt 0:00:13]} 23. Nb3 {[%emt 0:00:46]} Rc6 {[%emt 0:01:52]} 24. Nd2 {[%emt 0:00:32]} Nd6 {[%emt 0:00:12]} 25. Nb3 {[%emt 0:00:48]} Qc7 {[%emt 0:02:03]} 26. Nd4 {[%emt 0:02:00]} Rc4 {[%emt 0:01:01]} 27. Rd3 {[%emt 0:00:26]} Ne4 {[%emt 0:00:13]} 28. Rc1 {[%emt 0:00:48]} Qb6 {[%emt 0:00:56]} 29. Rc2 {[%emt 0:00:26]} Rbc8 {[%emt 0:00:57]} 30. Nf3 {[%emt 0:00:32]} R4c7 {[%emt 0:00:12]} 31. Nd2 {[%emt 0:00:10]} Nd6 {[%emt 0:00:14]} 32. Nb3 {[%emt 0:00:33]} Nf5 {[%emt 0:00:41]} 33. Qd2 {[%emt 0:00:14]} Rc4 {[%emt 0:00:15]} 34. Qd1 {[%emt 0:00:32]} Qa6 {[%emt 0:00:26]} 35. a3 {[%emt 0:00:05]} Qb6 {[%emt 0:00:32]} 36. Nd2 {[%emt 0:00:08]} R4c7 {[%emt 0:00:05]} 37. Nf3 {[%emt 0:00:05]} Rb7 {[%emt 0:00:23]} 38. Nd4 {[%emt 0:00:06]} Nd6 {[%emt 0:00:02]} 39. Qg4 {[%emt 0:00:16]} Ne4 {[%emt 0:00:06]} 40. Qe2 {[%emt 0:00:16]} Rbc7 {[%emt 0:00:07]} 41. Nf3 {[%emt 0:00:06]} a5 {[%emt 0:00:09]} 42. Rd4 {[%emt 0:00:14]} Nd6 {[%emt 0:00:08]} 43. Ne5 {[%emt 0:00:10]} Ne4 {[%emt 0:00:22]} 44. Rd1 {[%emt 0:00:13]} Nd6 {[%emt 0:00:12]} 45. Rd4 {[%emt 0:00:03]} Nf5 {[%emt 0:00:06]} 46. Rd1 {[%emt 0:00:11]} Qb3 {[%emt 0:00:22]} 47. Nf3 {[%emt 0:00:11]} Rc4 {[%emt 0:00:13]} 48. Rcd2 {[%emt 0:00:08]} Qb6 {[%emt 0:00:10]} 49. Nd4 {[%emt 0:00:04]} Ne7 {[%emt 0:00:07]} 50. Rd3 {[%emt 0:00:14]} Rb8 {[%emt 0:00:07]} 51. R1d2 {[%emt 0:00:08]} Nc6 {[%emt 0:00:15]} 52. Nxc6 {[%emt 0:00:05]} Qxc6 {[%emt 0:00:04]} 53. Rd4 {[%emt 0:00:04]} Rc5 {[%emt 0:00:05]} 54. Rg4 {[%emt 0:00:07]} Qc7 {[%emt 0:00:10]} 55. Qe3 {[%emt 0:00:13]} Rc4 {[%emt 0:00:09]} 56. Rxc4 {[%emt 0:00:15]} Qxc4 {[%emt 0:00:01]} 57. Qa7 {[%emt 0:00:09]} Qb5 {[%emt 0:00:09]} 58. Qc7 {[%emt 0:00:16]} a4 {[%emt 0:00:06]} 59. Qe5 {[%emt 0:00:20]} Rb7 {[%emt 0:00:03]} 60. Qe2 {[%emt 0:00:07]} Qxe2 {[%emt 0:00:16]} 61. Rxe2 {[%emt 0:00:01]} Kf8 {[%emt 0:00:00]} 62. Kf1 {[%emt 0:00:01]} Ke7 {[%emt 0:00:01]} 63. Ke1 {[%emt 0:00:02]} Kd6 {[%emt 0:00:01]} 64. Kd1 {[%emt 0:00:01]} e5 {[%emt 0:00:03]} 65. Kc2 {[%emt 0:00:05]} f5 {[%emt 0:00:04]} 66. Rd2 {[%emt 0:00:19]} Kc5 {[%emt 0:00:03]} 67. Re2 {[%emt 0:00:00]} Re7 {[%emt 0:00:12]} 68. Kd3 {[%emt 0:00:14]} g5 {[%emt 0:00:09]} 69. Re1 {[%emt 0:00:25]} h5 {[%emt 0:00:12]} 70. Re2 {[%emt 0:00:23]} h4 {[%emt 0:00:02]} 71. f3 {[%emt 0:00:14]} e4+ {[%emt 0:00:05]} 72. Kc2 {[%emt 0:00:22]} exf3 {[%emt 0:00:48]} 0-1

[Event "FIDE Open World Rapid 2024"]
[Site "New York"]
[Date "2024.12.27"]
[Round "8.34"]
[White "Donchenko, Alexander"]
[Black "Liang, Awonder"]
[Result "0-1"]
[ECO "E91"]
[WhiteElo "2618"]
[BlackElo "2687"]
[Annotator "ChessBase"]
[PlyCount "64"]
[EventDate "2024.12.14"]
[EventType "swiss"]
[EventCountry "USA"]
[SourceTitle "playchess.com"]
[Source "ChessBase"]
[SourceQuality "1"]
[TimeControl "900+10"]

1. c4 {[%emt 0:00:01]} g6 {[%emt 0:00:05]} 2. Nc3 {[%emt 0:00:20]} Bg7 {[%emt 0:00:01]} 3. d4 {[%emt 0:00:04]} Nf6 {[%emt 0:00:02]} 4. e4 {[%emt 0:00:02]} d6 {[%emt 0:00:01]} 5. Be2 {[%emt 0:00:03]} b6 {[%emt 0:00:20]} 6. Nf3 {[%emt 0:00:27]} O-O {[%emt 0:00:02]} 7. h3 {[%emt 0:00:19]} a5 {[%emt 0:00:14]} 8. Be3 {[%emt 0:00:18]} Bb7 {[%emt 0:00:23]} 9. Qc2 {[%emt 0:00:20]} Na6 {[%emt 0:01:05]} 10. Rd1 {[%emt 0:00:09]} Qe8 {[%emt 0:00:16]} 11. g4 {[%emt 0:00:57]} e6 {[%emt 0:00:15]} 12. a3 {[%emt 0:00:44]} c5 {[%emt 0:00:13]} 13. d5 {[%emt 0:00:24]} Nc7 {[%emt 0:00:15]} 14. Bf4 {[%emt 0:01:44]} Rd8 {[%emt 0:00:42]} 15. a4 {[%emt 0:00:55]} Na6 {[%emt 0:01:02]} 16. Kf1 {[%emt 0:01:43]} Nb4 {[%emt 0:00:06]} 17. Qc1 {[%emt 0:00:41]} Qe7 {[%emt 0:01:18]} 18. Bh6 {[%emt 0:00:18]} Nxe4 {[%emt 0:03:19]} 19. Bxg7 {[%emt 0:00:14]} Kxg7 {[%emt 0:00:01]} 20. Nxe4 {[%emt 0:00:03]} exd5 {[%emt 0:00:01]} 21. Ng3 {[%emt 0:00:48]} dxc4 {[%emt 0:00:02]} 22. Rg1 {[%emt 0:01:59]} Kh8 {[%emt 0:01:31]} 23. h4 {[%emt 0:02:38]} d5 {[%emt 0:00:05]} 24. Qf4 {[%emt 0:00:04]} Rd6 {[%emt 0:01:07]} 25. g5 {[%emt 0:00:41]} f6 {[%emt 0:00:48]} 26. Ne4 {[%emt 0:02:45]} Re6 {[%emt 0:02:25]} 27. Ng3 {[%emt 0:00:25]} d4 {[%emt 0:00:28]} 28. Nxd4 {[%emt 0:00:23]} cxd4 {[%emt 0:01:20]} 29. Bxc4 {[%emt 0:00:01]} Re5 {[%emt 0:01:38]} 30. Qxd4 {[%emt 0:00:08]} Re8 {[%emt 0:00:14]} 31. Qc3 {[%emt 0:00:27]} Nc2 {[%emt 0:00:04]} 32. Be2 {[%emt 0:00:13]} Rxe2 {[%emt 0:00:07]} 0-1

[Event "FIDE Open World Rapid 2024"]
[Site "New York"]
[Date "2024.12.28"]
[Round "8.34"]
[White "Rasulov, Vugar"]
[Black "Soo, Kai Jie"]
[Result "1-0"]
[ECO "A47"]
[WhiteElo "2504"]
[BlackElo "2153"]
[Annotator "ChessBase"]
[PlyCount "109"]
[EventDate "2024.12.14"]
[EventType "swiss"]
[EventCountry "USA"]
[SourceTitle "playchess.com"]
[Source "ChessBase"]
[SourceQuality "1"]
[TimeControl "900+10"]

1. d4 {[%emt 0:00:02]} Nf6 {[%emt 0:00:04]} 2. Nf3 {[%emt 0:00:02]} e6 {[%emt 0:00:01]} 3. Bf4 {[%emt 0:00:03]} b6 {[%emt 0:00:01]} 4. e3 {[%emt 0:00:04]} Bb7 {[%emt 0:00:03]} 5. Be2 {[%emt 0:00:05]} h6 {[%emt 0:00:07]} 6. h3 {[%emt 0:00:03]} d6 {[%emt 0:00:02]} 7. O-O {[%emt 0:00:05]} Nbd7 {[%emt 0:00:03]} 8. a4 {[%emt 0:00:05]} a5 {[%emt 0:00:25]} 9. Nc3 {[%emt 0:00:11]} g5 {[%emt 0:00:11]} 10. Bg3 {[%emt 0:00:01]} g4 {[%emt 0:00:37]} 11. hxg4 {[%emt 0:00:04]} Nxg4 {[%emt 0:00:01]} 12. Nh4 {[%emt 0:00:27]} h5 {[%emt 0:00:28]} 13. Bf3 {[%emt 0:00:02]} Bxf3 {[%emt 0:00:25]} 14. gxf3 {[%emt 0:00:22]} Be7 {[%emt 0:00:24]} 15. fxg4 {[%emt 0:01:07]} Bxh4 {[%emt 0:00:04]} 16. gxh5 {[%emt 0:00:29]} d5 {[%emt 0:01:23]} 17. Qf3 {[%emt 0:00:11]} c6 {[%emt 0:00:44]} 18. e4 {[%emt 0:00:09]} Qf6 {[%emt 0:01:03]} 19. Qxf6 {[%emt 0:01:29]} Bxf6 {[%emt 0:00:02]} 20. e5 {[%emt 0:00:29]} Be7 {[%emt 0:00:26]} 21. Kg2 {[%emt 0:00:01]} Rxh5 {[%emt 0:00:37]} 22. Rh1 {[%emt 0:00:02]} Rxh1 {[%emt 0:01:26]} 23. Rxh1 {[%emt 0:00:01]} Nf8 {[%emt 0:00:03]} 24. f4 {[%emt 0:00:13]} f5 {[%emt 0:01:04]} 25. Ne2 {[%emt 0:01:13]} Kf7 {[%emt 0:01:28]} 26. b3 {[%emt 0:00:08]} Kg7 {[%emt 0:00:07]} 27. c4 {[%emt 0:00:05]} Rd8 {[%emt 0:00:30]} 28. Rc1 {[%emt 0:00:10]} c5 {[%emt 0:00:17]} 29. Bf2 {[%emt 0:00:07]} Ng6 {[%emt 0:01:30]} 30. Kf3 {[%emt 0:00:14]} Kf7 {[%emt 0:00:29]} 31. Rh1 {[%emt 0:01:23]} dxc4 {[%emt 0:00:54]} 32. bxc4 {[%emt 0:00:02]} cxd4 {[%emt 0:00:01]} 33. Bxd4 {[%emt 0:00:36]} Nh4+ {[%emt 0:00:02]} 34. Ke3 {[%emt 0:00:23]} Ng2+ {[%emt 0:00:04]} 35. Kf2 {[%emt 0:00:28]} Rxd4 {[%emt 0:02:51]} 36. Nxd4 {[%emt 0:00:21]} Nxf4 {[%emt 0:00:02]} 37. Rh7+ {[%emt 0:00:04]} Ke8 {[%emt 0:00:06]} 38. Kg3 {[%emt 0:00:43]} Nd3 {[%emt 0:00:21]} 39. Nxe6 {[%emt 0:00:08]} Nxe5 {[%emt 0:00:02]} 40. c5 {[%emt 0:01:25]} f4+ {[%emt 0:00:31]} 41. Kxf4 {[%emt 0:00:11]} Nd3+ {[%emt 0:00:01]} 42. Kf5 {[%emt 0:00:16]} Bxc5 {[%emt 0:00:26]} 43. Nc7+ {[%emt 0:00:34]} Kd8 {[%emt 0:00:16]} 44. Nd5 {[%emt 0:00:03]} Nb4 {[%emt 0:00:25]} 45. Nf4 {[%emt 0:00:07]} Kc8 {[%emt 0:00:09]} 46. Ke6 {[%emt 0:00:17]} Kb8 {[%emt 0:00:31]} 47. Ng6 {[%emt 0:00:25]} Nd3 {[%emt 0:00:16]} 48. Kd5 {[%emt 0:00:08]} Nb2 {[%emt 0:00:18]} 49. Rh4 {[%emt 0:00:52]} Kb7 {[%emt 0:00:05]} 50. Ne5 {[%emt 0:00:02]} Bb4 {[%emt 0:01:27]} 51. Rh7+ {[%emt 0:00:01]} Ka6 {[%emt 0:00:02]} 52. Nc6 {[%emt 0:00:28]} b5 {[%emt 0:00:02]} 53. Nb8+ {[%emt 0:00:03]} Kb6 {[%emt 0:00:02]} 54. Nd7+ {[%emt 0:00:02]} Ka6 {[%emt 0:00:10]} 55. Kc6 {[%emt 0:00:05]} 1-0